[Event "Titled Tuesday Blitz April 05 Early 2022"]
[White "Kostiukov, Alexandr"]
[Black "Decuigniere, Tom"]
[WhiteFideId "14108100"]
[BlackFideId "26093820"]
[WhiteElo "2202"]
[BlackElo "1997"]
[Result "0-1"]
[Round "04"]
[TimeControl "180+1"]
[Date "2022.04.05"]
[WhiteClock "0:00:31"]
[BlackClock "0:00:15"]

1. g3 {[%clk 0:02:47]}  Nf6 {[%clk 0:02:58]} 2. Bg2 {[%clk 0:02:47]}  g6 {[%clk 0:02:59]} 3. c4 {[%clk 0:02:47]}  Bg7 {[%clk 0:03:00]} 4. Nf3 {[%clk 0:02:47]}  O-O {[%clk 0:03:00]} 5. O-O {[%clk 0:02:48]}  d6 {[%clk 0:03:01]} 6. d4 {[%clk 0:02:48]}  Re8 {[%clk 0:03:01]} 7. Nc3 {[%clk 0:02:48]}  c6 {[%clk 0:03:00]} 8. h3 {[%clk 0:02:47]}  Nbd7 {[%clk 0:02:59]} 9. e4 {[%clk 0:02:47]}  e5 {[%clk 0:02:59]} 10. Be3 {[%clk 0:02:48]}  b6 {[%clk 0:02:47]} 11. Rc1 {[%clk 0:02:45]}  Bb7 {[%clk 0:02:48]} 12. b4 {[%clk 0:02:42]}  Qe7 {[%clk 0:02:42]} 13. c5 {[%clk 0:02:39]}  dxc5 {[%clk 0:02:38]} 14. bxc5 {[%clk 0:02:21]}  exd4 {[%clk 0:02:32]} 15. Bxd4 {[%clk 0:02:18]}  Rad8 {[%clk 0:02:09]} 16. cxb6 {[%clk 0:02:15]}  axb6 {[%clk 0:02:05]} 17. Re1 {[%clk 0:02:02]}  c5 {[%clk 0:02:00]} 18. Bxf6 {[%clk 0:02:00]}  Bxf6 {[%clk 0:01:45]} 19. Nd5 {[%clk 0:01:56]}  Bxd5 {[%clk 0:01:41]} 20. exd5 {[%clk 0:01:56]}  Qd6 {[%clk 0:01:40]} 21. Rxe8+ {[%clk 0:01:52]}  Rxe8 {[%clk 0:01:41]} 22. Qb3 {[%clk 0:01:51]}  Kg7 {[%clk 0:01:29]} 23. a4 {[%clk 0:01:45]}  Re2 {[%clk 0:01:23]} 24. Rd1 {[%clk 0:01:33]}  Ne5 {[%clk 0:01:08]} 25. Nxe5 {[%clk 0:01:17]}  Bxe5 {[%clk 0:01:08]} 26. Qc4 {[%clk 0:01:13]}  Rb2 {[%clk 0:01:01]} 27. f4 {[%clk 0:01:06]}  Bd4+ {[%clk 0:00:58]} 28. Rxd4 {[%clk 0:01:06]}  cxd4 {[%clk 0:00:59]} 29. Qxd4+ {[%clk 0:01:05]}  Qf6 {[%clk 0:00:59]} 30. Qe5 {[%clk 0:01:04]}  Qxe5 {[%clk 0:00:55]} 31. fxe5 {[%clk 0:01:03]}  Re2 {[%clk 0:00:55]} 32. d6 {[%clk 0:01:00]}  Kf8 {[%clk 0:00:51]} 33. d7 {[%clk 0:00:54]}  Ke7 {[%clk 0:00:50]} 34. Bc6 {[%clk 0:00:55]}  Rxe5 {[%clk 0:00:49]} 35. Kf2 {[%clk 0:00:55]}  Rc5 {[%clk 0:00:48]} 36. Bb5 {[%clk 0:00:55]}  Rxb5 {[%clk 0:00:46]} 37. axb5 {[%clk 0:00:56]}  Kxd7 {[%clk 0:00:46]} 38. Ke3 {[%clk 0:00:55]}  Kd6 {[%clk 0:00:47]} 39. Kd4 {[%clk 0:00:55]}  f6 {[%clk 0:00:44]} 40. g4 {[%clk 0:00:55]}  f5 {[%clk 0:00:43]} 41. gxf5 {[%clk 0:00:47]}  gxf5 {[%clk 0:00:43]} 42. h4 {[%clk 0:00:43]}  Ke6 {[%clk 0:00:37]} 43. Ke3 {[%clk 0:00:39]}  Ke5 {[%clk 0:00:35]} 44. Kf3 {[%clk 0:00:39]}  f4 {[%clk 0:00:33]} 45. h5 {[%clk 0:00:39]}  Kf5 {[%clk 0:00:33]} 46. h6 {[%clk 0:00:39]}  Kg6 {[%clk 0:00:32]} 47. Kxf4 {[%clk 0:00:39]}  Kxh6 {[%clk 0:00:33]} 48. Ke5 {[%clk 0:00:37]}  Kg5 {[%clk 0:00:33]} 49. Kd6 {[%clk 0:00:37]}  h5 {[%clk 0:00:34]} 50. Kc6 {[%clk 0:00:38]}  h4 {[%clk 0:00:35]} 51. Kxb6 {[%clk 0:00:39]}  h3 {[%clk 0:00:36]} 52. Kc7 {[%clk 0:00:37]}  h2 {[%clk 0:00:37]} 53. b6 {[%clk 0:00:37]}  h1=Q {[%clk 0:00:37]} 54. b7 {[%clk 0:00:38]}  Qc1+ {[%clk 0:00:35]} 55. Kd8 {[%clk 0:00:35]}  Qd2+ {[%clk 0:00:35]} 56. Kc8 {[%clk 0:00:36]}  Qc3+ {[%clk 0:00:35]} 57. Kd8 {[%clk 0:00:36]}  Qd4+ {[%clk 0:00:36]} 58. Kc8 {[%clk 0:00:36]}  Qc5+ {[%clk 0:00:36]} 59. Kd8 {[%clk 0:00:36]}  Qd6+ {[%clk 0:00:36]} 60. Kc8 {[%clk 0:00:37]}  Qc6+ {[%clk 0:00:36]} 61. Kb8 {[%clk 0:00:37]}  Kf6 {[%clk 0:00:36]} 62. Ka7 {[%clk 0:00:38]}  Qa4+ {[%clk 0:00:36]} 63. Kb6 {[%clk 0:00:38]}  Qb4+ {[%clk 0:00:36]} 64. Kc7 {[%clk 0:00:38]}  Qc5+ {[%clk 0:00:36]} 65. Kd8 {[%clk 0:00:38]}  Qd6+ {[%clk 0:00:36]} 66. Kc8 {[%clk 0:00:38]}  Qc6+ {[%clk 0:00:36]} 67. Kb8 {[%clk 0:00:38]}  Ke6 {[%clk 0:00:37]} 68. Ka7 {[%clk 0:00:39]}  Qa4+ {[%clk 0:00:35]} 69. Kb6 {[%clk 0:00:39]}  Qb4+ {[%clk 0:00:35]} 70. Kc7 {[%clk 0:00:39]}  Qc5+ {[%clk 0:00:34]} 71. Kd8 {[%clk 0:00:39]}  Qc6 {[%clk 0:00:15]} 72. b8=Q {[%clk 0:00:31]}  Qd7# {[%clk 0:00:15]} 0-1


[Site "https://www.chess.com"]

[Event "Titled Tuesday Blitz April 05 Early 2022"]
[White "Krishna, C R G"]
[Black "Plazuelo Pascual, Juan"]
[WhiteFideId "5018625"]
[BlackFideId "32059566"]
[WhiteElo "2332"]
[BlackElo "2359"]
[Result "1-0"]
[Round "04"]
[TimeControl "180+1"]
[Date "2022.04.05"]
[WhiteClock "0:01:55"]
[BlackClock "0:00:08"]

1. e4 {[%clk 0:03:00]}  e5 {[%clk 0:02:58]} 2. Nf3 {[%clk 0:02:59]}  Nc6 {[%clk 0:02:59]} 3. g3 {[%clk 0:02:56]}  Nf6 {[%clk 0:02:59]} 4. d3 {[%clk 0:02:55]}  d5 {[%clk 0:02:57]} 5. Nbd2 {[%clk 0:02:55]}  Be6 {[%clk 0:02:50]} 6. Bg2 {[%clk 0:02:55]}  h6 {[%clk 0:02:50]} 7. O-O {[%clk 0:02:55]}  Qd7 {[%clk 0:02:50]} 8. c3 {[%clk 0:02:54]}  Be7 {[%clk 0:02:31]} 9. b4 {[%clk 0:02:53]}  dxe4 {[%clk 0:02:25]} 10. dxe4 {[%clk 0:02:51]}  a6 {[%clk 0:02:26]} 11. a4 {[%clk 0:02:49]}  O-O {[%clk 0:02:22]} 12. Bb2 {[%clk 0:02:41]}  Bd6 {[%clk 0:02:19]} 13. Qe2 {[%clk 0:02:39]}  Ne7 {[%clk 0:02:04]} 14. Nc4 {[%clk 0:02:38]}  Bxc4 {[%clk 0:02:05]} 15. Qxc4 {[%clk 0:02:39]}  Qc6 {[%clk 0:02:05]} 16. Nd2 {[%clk 0:02:37]}  Rfd8 {[%clk 0:01:58]} 17. Qxc6 {[%clk 0:02:31]}  Nxc6 {[%clk 0:01:57]} 18. Nc4 {[%clk 0:02:32]}  Kf8 {[%clk 0:01:14]} 19. f4 {[%clk 0:02:25]}  Ke7 {[%clk 0:00:58]} 20. b5 {[%clk 0:02:25]}  axb5 {[%clk 0:00:36]} 21. axb5 {[%clk 0:02:26]}  Rxa1 {[%clk 0:00:36]} 22. Bxa1 {[%clk 0:02:26]}  Na7 {[%clk 0:00:37]} 23. Nxd6 {[%clk 0:02:22]}  cxd6 {[%clk 0:00:35]} 24. c4 {[%clk 0:02:22]}  Nd7 {[%clk 0:00:31]} 25. Bh3 {[%clk 0:02:19]}  f6 {[%clk 0:00:28]} 26. Rd1 {[%clk 0:02:13]}  Nc5 {[%clk 0:00:26]} 27. Bc3 {[%clk 0:02:11]}  Nxe4 {[%clk 0:00:24]} 28. Ba5 {[%clk 0:02:11]}  Ra8 {[%clk 0:00:18]} 29. Bg2 {[%clk 0:02:11]}  Nc5 {[%clk 0:00:17]} 30. fxe5 {[%clk 0:02:10]}  fxe5 {[%clk 0:00:17]} 31. Bb6 {[%clk 0:02:04]}  Nd7 {[%clk 0:00:12]} 32. Bf2 {[%clk 0:01:57]}  Nc5 {[%clk 0:00:08]} 33. Ra1 {[%clk 0:01:55]} 1-0


[Site "https://www.chess.com"]

[Event "Titled Tuesday Blitz April 05 Early 2022"]
[White "Lamaze, Simon"]
[Black "Sanchez Alvares, Kelvin Antonio"]
[WhiteFideId "36069264"]
[BlackFideId "3906680"]
[WhiteElo "1999"]
[BlackElo "2193"]
[Result "1-0"]
[Round "04"]
[TimeControl "180+1"]
[Date "2022.04.05"]
[WhiteClock "0:00:22"]
[BlackClock "0:00:07"]

1. d4 {[%clk 0:03:00]}  d5 {[%clk 0:02:59]} 2. c4 {[%clk 0:02:58]}  c6 {[%clk 0:02:43]} 3. Nc3 {[%clk 0:02:56]}  Nf6 {[%clk 0:02:39]} 4. e3 {[%clk 0:02:56]}  e6 {[%clk 0:02:36]} 5. b3 {[%clk 0:02:55]}  Bb4 {[%clk 0:02:35]} 6. Bb2 {[%clk 0:02:45]}  Qa5 {[%clk 0:02:34]} 7. Qc2 {[%clk 0:02:41]}  Ne4 {[%clk 0:02:33]} 8. Ne2 {[%clk 0:02:41]}  e5 {[%clk 0:02:23]} 9. a3 {[%clk 0:02:39]}  Bxc3+ {[%clk 0:02:18]} 10. Nxc3 {[%clk 0:02:33]}  exd4 {[%clk 0:02:08]} 11. b4 {[%clk 0:02:18]}  Qc7 {[%clk 0:02:00]} 12. Nxe4 {[%clk 0:02:14]}  dxe4 {[%clk 0:01:58]} 13. Qxe4+ {[%clk 0:02:15]}  Be6 {[%clk 0:01:58]} 14. Qxd4 {[%clk 0:02:14]}  f6 {[%clk 0:01:57]} 15. Bd3 {[%clk 0:02:08]}  Nd7 {[%clk 0:01:56]} 16. O-O-O {[%clk 0:01:58]}  a5 {[%clk 0:01:54]} 17. Qe4 {[%clk 0:01:50]}  Kf7 {[%clk 0:01:46]} 18. Rd2 {[%clk 0:01:37]}  axb4 {[%clk 0:01:46]} 19. axb4 {[%clk 0:01:38]}  Ra4 {[%clk 0:01:45]} 20. Bc3 {[%clk 0:01:10]}  Ne5 {[%clk 0:01:44]} 21. Bxe5 {[%clk 0:01:06]}  fxe5 {[%clk 0:01:30]} 22. Rb2 {[%clk 0:01:05]}  g6 {[%clk 0:01:25]} 23. Rd1 {[%clk 0:01:00]}  Rf8 {[%clk 0:01:20]} 24. Qh4 {[%clk 0:00:58]}  Kg7 {[%clk 0:01:16]} 25. f3 {[%clk 0:00:53]}  b5 {[%clk 0:01:04]} 26. c5 {[%clk 0:00:51]}  Qf7 {[%clk 0:00:55]} 27. Qe4 {[%clk 0:00:45]}  Qc7 {[%clk 0:00:52]} 28. Bc2 {[%clk 0:00:40]}  Bf5 {[%clk 0:00:41]} 29. Qh4 {[%clk 0:00:37]}  Ra1+ {[%clk 0:00:40]} 30. Bb1 {[%clk 0:00:33]}  Qa7 {[%clk 0:00:28]} 31. e4 {[%clk 0:00:32]}  Be6 {[%clk 0:00:21]} 32. Qg5 {[%clk 0:00:24]}  Qc7 {[%clk 0:00:08]} 33. Rd6 {[%clk 0:00:23]}  Bf7 {[%clk 0:00:07]} 34. Qxe5+ {[%clk 0:00:22]}  Kh6 {[%clk 0:00:07]} 35. Rxg6+ {[%clk 0:00:22]} 1-0


[Site "https://www.chess.com"]

[Event "Titled Tuesday Blitz April 05 Early 2022"]
[White "Leiva, Gianmarco"]
[Black "Sellitti, Federico"]
[WhiteFideId "3804399"]
[BlackFideId "821829"]
[WhiteElo "2323"]
[BlackElo "2558"]
[Result "1-0"]
[Round "04"]
[TimeControl "180+1"]
[Date "2022.04.05"]
[WhiteClock "0:00:59"]
[BlackClock "0:00:04"]

1. e4 {[%clk 0:03:00]}  e5 {[%clk 0:03:00]} 2. Nf3 {[%clk 0:03:01]}  d5 {[%clk 0:03:00]} 3. d4 {[%clk 0:02:58]}  dxe4 {[%clk 0:02:55]} 4. Nxe5 {[%clk 0:02:58]}  Bd6 {[%clk 0:02:54]} 5. Nc4 {[%clk 0:02:55]}  Nf6 {[%clk 0:02:53]} 6. Nc3 {[%clk 0:02:55]}  Nc6 {[%clk 0:02:49]} 7. Bg5 {[%clk 0:02:47]}  Bb4 {[%clk 0:02:41]} 8. a3 {[%clk 0:02:47]}  Bxc3+ {[%clk 0:02:39]} 9. bxc3 {[%clk 0:02:48]}  h6 {[%clk 0:02:38]} 10. Bh4 {[%clk 0:02:48]}  O-O {[%clk 0:02:35]} 11. Ne3 {[%clk 0:02:48]}  Qd6 {[%clk 0:02:27]} 12. Bc4 {[%clk 0:02:46]}  Ne7 {[%clk 0:02:12]} 13. Bg3 {[%clk 0:02:39]}  Qd7 {[%clk 0:02:01]} 14. Be5 {[%clk 0:02:36]}  Nfd5 {[%clk 0:01:54]} 15. Qh5 {[%clk 0:02:16]}  Nxe3 {[%clk 0:01:47]} 16. fxe3 {[%clk 0:02:16]}  Qg4 {[%clk 0:01:48]} 17. Qxg4 {[%clk 0:02:08]}  Bxg4 {[%clk 0:01:49]} 18. h3 {[%clk 0:02:05]}  Bh5 {[%clk 0:01:35]} 19. Rb1 {[%clk 0:01:52]}  b6 {[%clk 0:01:29]} 20. Kd2 {[%clk 0:01:46]}  c6 {[%clk 0:01:27]} 21. a4 {[%clk 0:01:45]}  Rfd8 {[%clk 0:01:15]} 22. a5 {[%clk 0:01:42]}  b5 {[%clk 0:01:14]} 23. Ba2 {[%clk 0:01:35]}  a6 {[%clk 0:01:12]} 24. c4 {[%clk 0:01:32]}  c5 {[%clk 0:01:05]} 25. cxb5 {[%clk 0:01:30]}  cxd4 {[%clk 0:01:05]} 26. Bxd4 {[%clk 0:01:27]}  axb5 {[%clk 0:01:02]} 27. Rxb5 {[%clk 0:01:28]}  Nc6 {[%clk 0:01:01]} 28. Bd5 {[%clk 0:01:26]}  Nxd4 {[%clk 0:00:50]} 29. exd4 {[%clk 0:01:26]}  Ra7 {[%clk 0:00:41]} 30. Ra1 {[%clk 0:01:15]}  Kf8 {[%clk 0:00:41]} 31. Rb7 {[%clk 0:01:13]}  Ra6 {[%clk 0:00:34]} 32. c4 {[%clk 0:01:13]}  f5 {[%clk 0:00:17]} 33. Ke3 {[%clk 0:01:11]}  Be8 {[%clk 0:00:16]} 34. Rb6 {[%clk 0:01:06]}  Ra7 {[%clk 0:00:15]} 35. a6 {[%clk 0:01:02]}  Bf7 {[%clk 0:00:15]} 36. Rb7 {[%clk 0:01:00]}  Rda8 {[%clk 0:00:04]} 37. Rxf7+ {[%clk 0:00:59]} 1-0


[Site "https://www.chess.com"]

[Event "Titled Tuesday Blitz April 05 Early 2022"]
[White "Manolache, Marius"]
[Black "Bettalli, Francesco"]
[WhiteFideId "1201530"]
[BlackFideId "2816453"]
[WhiteElo "2364"]
[BlackElo "2216"]
[Result "1-0"]
[Round "04"]
[TimeControl "180+1"]
[Date "2022.04.05"]
[WhiteClock "0:00:31"]
[BlackClock "0:00:02"]

1. d4 {[%clk 0:02:58]}  Nf6 {[%clk 0:02:57]} 2. c4 {[%clk 0:02:57]}  c5 {[%clk 0:02:57]} 3. d5 {[%clk 0:02:56]}  b5 {[%clk 0:02:58]} 4. Qc2 {[%clk 0:02:56]}  bxc4 {[%clk 0:02:58]} 5. e4 {[%clk 0:02:56]}  e6 {[%clk 0:02:58]} 6. Bxc4 {[%clk 0:02:56]}  exd5 {[%clk 0:02:59]} 7. exd5 {[%clk 0:02:56]}  d6 {[%clk 0:02:59]} 8. Ne2 {[%clk 0:02:50]}  Be7 {[%clk 0:02:59]} 9. O-O {[%clk 0:02:49]}  O-O {[%clk 0:02:59]} 10. Nbc3 {[%clk 0:02:49]}  Nbd7 {[%clk 0:02:59]} 11. a4 {[%clk 0:02:46]}  Rb8 {[%clk 0:02:58]} 12. b3 {[%clk 0:02:45]}  Nb6 {[%clk 0:02:58]} 13. Rd1 {[%clk 0:02:35]}  Nxc4 {[%clk 0:02:53]} 14. bxc4 {[%clk 0:02:35]}  Rb4 {[%clk 0:02:54]} 15. Qd3 {[%clk 0:02:29]}  Nd7 {[%clk 0:02:49]} 16. f4 {[%clk 0:02:27]}  Bf6 {[%clk 0:02:46]} 17. Ba3 {[%clk 0:02:24]}  Rb3 {[%clk 0:02:38]} 18. Qc2 {[%clk 0:02:23]}  Rb8 {[%clk 0:02:31]} 19. Rab1 {[%clk 0:02:22]}  Ba6 {[%clk 0:02:28]} 20. Nb5 {[%clk 0:02:16]}  Bxb5 {[%clk 0:02:27]} 21. axb5 {[%clk 0:02:14]}  Qa5 {[%clk 0:02:27]} 22. Bb2 {[%clk 0:02:14]}  Bxb2 {[%clk 0:02:26]} 23. Rxb2 {[%clk 0:02:12]}  Rfe8 {[%clk 0:02:18]} 24. Ra2 {[%clk 0:02:12]}  Qc7 {[%clk 0:02:15]} 25. Rda1 {[%clk 0:02:09]}  Rb7 {[%clk 0:02:15]} 26. Qd3 {[%clk 0:02:01]}  Nb6 {[%clk 0:02:03]} 27. Ng3 {[%clk 0:01:57]}  Qe7 {[%clk 0:02:02]} 28. Re2 {[%clk 0:01:55]}  Qd7 {[%clk 0:01:59]} 29. Ne4 {[%clk 0:01:51]}  h6 {[%clk 0:01:54]} 30. Rae1 {[%clk 0:01:46]}  Rbb8 {[%clk 0:01:51]} 31. h3 {[%clk 0:01:37]}  Kh8 {[%clk 0:01:36]} 32. Ng3 {[%clk 0:01:32]}  Rxe2 {[%clk 0:01:33]} 33. Qxe2 {[%clk 0:01:33]}  Qd8 {[%clk 0:01:29]} 34. Nf5 {[%clk 0:01:28]}  Qf6 {[%clk 0:01:28]} 35. Qe4 {[%clk 0:01:28]}  Nxc4 {[%clk 0:01:25]} 36. Nxh6 {[%clk 0:01:19]}  Nd2 {[%clk 0:01:19]} 37. Qe2 {[%clk 0:01:08]}  Qd4+ {[%clk 0:01:13]} 38. Kh1 {[%clk 0:01:08]}  gxh6 {[%clk 0:01:13]} 39. Rd1 {[%clk 0:01:08]}  Ne4 {[%clk 0:01:09]} 40. Kh2 {[%clk 0:01:02]}  Nc3 {[%clk 0:00:58]} 41. Qh5 {[%clk 0:01:02]}  Nxd1 {[%clk 0:00:45]} 42. Qxh6+ {[%clk 0:01:01]}  Kg8 {[%clk 0:00:46]} 43. Qg5+ {[%clk 0:01:01]}  Qg7 {[%clk 0:00:47]} 44. Qe7 {[%clk 0:01:01]}  Ne3 {[%clk 0:00:45]} 45. Qxe3 {[%clk 0:01:00]}  Rxb5 {[%clk 0:00:41]} 46. Qe8+ {[%clk 0:01:00]}  Qf8 {[%clk 0:00:41]} 47. Qxb5 {[%clk 0:01:00]}  Qd8 {[%clk 0:00:35]} 48. Qc6 {[%clk 0:00:53]}  Kg7 {[%clk 0:00:26]} 49. Kg3 {[%clk 0:00:50]}  Qb6 {[%clk 0:00:24]} 50. Kg4 {[%clk 0:00:43]}  Kf6 {[%clk 0:00:21]} 51. Qe8 {[%clk 0:00:38]}  a5 {[%clk 0:00:07]} 52. h4 {[%clk 0:00:37]}  Qc7 {[%clk 0:00:05]} 53. h5 {[%clk 0:00:34]}  Kg7 {[%clk 0:00:04]} 54. Kg5 {[%clk 0:00:32]}  f6+ {[%clk 0:00:03]} 55. Kf5 {[%clk 0:00:31]}  Qf7 {[%clk 0:00:04]} 56. h6+ {[%clk 0:00:31]}  Kxh6 {[%clk 0:00:01]} 57. Qxf7 {[%clk 0:00:31]}  c4 {[%clk 0:00:02]} 58. Qg6# {[%clk 0:00:31]} 1-0


[Site "https://www.chess.com"]

[Event "Titled Tuesday Blitz April 05 Early 2022"]
[White "Marcziter, Dmitrii"]
[Black "Rodchenkov, Sergey D."]
[WhiteFideId "13900765"]
[BlackFideId "4168712"]
[WhiteElo "2155"]
[BlackElo "2306"]
[Result "1-0"]
[Round "04"]
[TimeControl "180+1"]
[Date "2022.04.05"]
[WhiteClock "0:00:53"]
[BlackClock "0:00:19"]

1. d4 {[%clk 0:03:00]}  Nf6 {[%clk 0:02:59]} 2. c4 {[%clk 0:03:00]}  e6 {[%clk 0:03:00]} 3. Nf3 {[%clk 0:02:59]}  b6 {[%clk 0:03:00]} 4. a3 {[%clk 0:02:59]}  Bb7 {[%clk 0:03:00]} 5. Nc3 {[%clk 0:02:58]}  d5 {[%clk 0:03:00]} 6. cxd5 {[%clk 0:02:58]}  Nxd5 {[%clk 0:03:01]} 7. Qa4+ {[%clk 0:02:58]}  c6 {[%clk 0:02:57]} 8. e4 {[%clk 0:02:56]}  Nxc3 {[%clk 0:02:57]} 9. bxc3 {[%clk 0:02:56]}  Bd6 {[%clk 0:02:51]} 10. Bd3 {[%clk 0:02:50]}  O-O {[%clk 0:02:50]} 11. O-O {[%clk 0:02:50]}  c5 {[%clk 0:02:45]} 12. Qc2 {[%clk 0:02:49]}  h6 {[%clk 0:02:42]} 13. Rd1 {[%clk 0:02:43]}  Qc7 {[%clk 0:02:16]} 14. d5 {[%clk 0:02:37]}  exd5 {[%clk 0:02:09]} 15. exd5 {[%clk 0:02:36]}  Nd7 {[%clk 0:02:09]} 16. c4 {[%clk 0:02:35]}  Ne5 {[%clk 0:02:02]} 17. Bh7+ {[%clk 0:02:12]}  Kh8 {[%clk 0:02:01]} 18. Ne1 {[%clk 0:02:11]}  Nxc4 {[%clk 0:01:56]} 19. Qxc4 {[%clk 0:01:51]}  Kxh7 {[%clk 0:01:55]} 20. Nf3 {[%clk 0:01:50]}  Rad8 {[%clk 0:01:52]} 21. Bb2 {[%clk 0:01:49]}  f6 {[%clk 0:01:39]} 22. Qe4+ {[%clk 0:01:48]}  Kg8 {[%clk 0:01:38]} 23. Nh4 {[%clk 0:01:36]}  Be5 {[%clk 0:01:28]} 24. Rab1 {[%clk 0:01:27]}  Rfe8 {[%clk 0:00:51]} 25. Qg4 {[%clk 0:01:19]}  Bxb2 {[%clk 0:00:49]} 26. Rxb2 {[%clk 0:01:19]}  Rxd5 {[%clk 0:00:48]} 27. Rbb1 {[%clk 0:01:14]}  Rg5 {[%clk 0:00:46]} 28. Qc4+ {[%clk 0:01:12]}  Qf7 {[%clk 0:00:39]} 29. Qxf7+ {[%clk 0:01:11]}  Kxf7 {[%clk 0:00:40]} 30. Rd7+ {[%clk 0:01:11]}  Re7 {[%clk 0:00:40]} 31. Rxe7+ {[%clk 0:01:11]}  Kxe7 {[%clk 0:00:41]} 32. f4 {[%clk 0:01:09]}  Rd5 {[%clk 0:00:40]} 33. Re1+ {[%clk 0:01:07]}  Kf7 {[%clk 0:00:37]} 34. f5 {[%clk 0:01:06]}  Rd2 {[%clk 0:00:35]} 35. Ng6 {[%clk 0:01:03]}  Rd7 {[%clk 0:00:27]} 36. Nh8+ {[%clk 0:00:55]}  Kg8 {[%clk 0:00:27]} 37. Re8+ {[%clk 0:00:53]}  Kh7 {[%clk 0:00:19]} 38. Ng6 {[%clk 0:00:53]} 1-0


[Site "https://www.chess.com"]

[Event "Titled Tuesday Blitz April 05 Early 2022"]
[White "Martin Carmona, Gaston Manuel"]
[Black "Goldin, Roman"]
[WhiteFideId "22284567"]
[BlackFideId "2803860"]
[WhiteElo "2146"]
[BlackElo "2312"]
[Result "1/2-1/2"]
[Round "04"]
[TimeControl "180+1"]
[Date "2022.04.05"]
[WhiteClock "0:00:09"]
[BlackClock "0:00:05"]

1. d4 {[%clk 0:03:00]}  Nf6 {[%clk 0:02:56]} 2. Nf3 {[%clk 0:03:00]}  g6 {[%clk 0:02:52]} 3. c4 {[%clk 0:02:59]}  Bg7 {[%clk 0:02:52]} 4. Nc3 {[%clk 0:03:00]}  d5 {[%clk 0:02:49]} 5. Bf4 {[%clk 0:03:00]}  O-O {[%clk 0:02:47]} 6. e3 {[%clk 0:03:00]}  c6 {[%clk 0:02:40]} 7. Rc1 {[%clk 0:02:56]}  Bg4 {[%clk 0:02:35]} 8. Be2 {[%clk 0:02:54]}  Nbd7 {[%clk 0:02:24]} 9. cxd5 {[%clk 0:02:51]}  Nxd5 {[%clk 0:02:19]} 10. Nxd5 {[%clk 0:02:46]}  cxd5 {[%clk 0:02:20]} 11. O-O {[%clk 0:02:47]}  Bxf3 {[%clk 0:02:15]} 12. Bxf3 {[%clk 0:02:46]}  e6 {[%clk 0:02:15]} 13. Bc7 {[%clk 0:02:39]}  Qe7 {[%clk 0:02:12]} 14. Qb3 {[%clk 0:02:39]}  b6 {[%clk 0:02:03]} 15. Be2 {[%clk 0:02:38]}  Rfc8 {[%clk 0:02:01]} 16. Bg3 {[%clk 0:02:36]}  Nf6 {[%clk 0:01:54]} 17. Ba6 {[%clk 0:02:34]}  Rxc1 {[%clk 0:01:52]} 18. Rxc1 {[%clk 0:02:35]}  Ne4 {[%clk 0:01:51]} 19. Qc2 {[%clk 0:02:12]}  h5 {[%clk 0:01:36]} 20. Qc7 {[%clk 0:02:10]}  Qb4 {[%clk 0:01:34]} 21. b3 {[%clk 0:01:55]}  Qa5 {[%clk 0:01:24]} 22. Bc8 {[%clk 0:01:49]}  Qxa2 {[%clk 0:01:17]} 23. Qb7 {[%clk 0:01:36]}  Qd2 {[%clk 0:00:55]} 24. Rf1 {[%clk 0:01:35]}  Rxc8 {[%clk 0:00:45]} 25. Qxc8+ {[%clk 0:01:33]}  Bf8 {[%clk 0:00:35]} 26. Be5 {[%clk 0:01:18]}  Qe2 {[%clk 0:00:12]} 27. h3 {[%clk 0:00:56]}  h4 {[%clk 0:00:11]} 28. Qd8 {[%clk 0:00:53]}  Nd2 {[%clk 0:00:10]} 29. Ra1 {[%clk 0:00:51]}  Nxb3 {[%clk 0:00:06]} 30. Rxa7 {[%clk 0:00:50]}  Qe1+ {[%clk 0:00:05]} 31. Kh2 {[%clk 0:00:50]}  Nd2 {[%clk 0:00:05]} 32. g4 {[%clk 0:00:06]}  Qxf2+ {[%clk 0:00:04]} 33. Kh1 {[%clk 0:00:07]}  Qf1+ {[%clk 0:00:04]} 34. Kh2 {[%clk 0:00:08]}  Qf2+ {[%clk 0:00:04]} 35. Kh1 {[%clk 0:00:08]}  Qf1+ {[%clk 0:00:05]} 36. Kh2 {[%clk 0:00:09]}  Qf2+ {[%clk 0:00:05]} 1/2-1/2


[Site "https://www.chess.com"]

[Event "Titled Tuesday Blitz April 05 Early 2022"]
[White "Maung, Maung Kyaw Zaw Hein"]
[Black "Sanchez, Robert"]
[WhiteFideId "13001698"]
[BlackFideId "2034360"]
[WhiteElo "1785"]
[BlackElo "2278"]
[Result "1/2-1/2"]
[Round "04"]
[TimeControl "180+1"]
[Date "2022.04.05"]
[WhiteClock "0:00:19"]
[BlackClock "0:00:16"]

1. Nf3 {[%clk 0:02:58]}  d5 {[%clk 0:03:00]} 2. d4 {[%clk 0:02:57]}  e6 {[%clk 0:03:00]} 3. c4 {[%clk 0:02:57]}  Nf6 {[%clk 0:03:01]} 4. Nc3 {[%clk 0:02:58]}  Be7 {[%clk 0:03:01]} 5. Bf4 {[%clk 0:02:57]}  O-O {[%clk 0:03:01]} 6. e3 {[%clk 0:02:57]}  a6 {[%clk 0:03:02]} 7. Bd3 {[%clk 0:02:57]}  dxc4 {[%clk 0:03:02]} 8. Bxc4 {[%clk 0:02:58]}  b5 {[%clk 0:03:03]} 9. Bd3 {[%clk 0:02:58]}  Bb7 {[%clk 0:03:04]} 10. O-O {[%clk 0:02:55]}  Nbd7 {[%clk 0:03:04]} 11. a4 {[%clk 0:02:55]}  b4 {[%clk 0:03:03]} 12. Nb1 {[%clk 0:02:55]}  c5 {[%clk 0:03:02]} 13. Nbd2 {[%clk 0:02:56]}  Nh5 {[%clk 0:02:57]} 14. Bg3 {[%clk 0:02:47]}  Nxg3 {[%clk 0:02:54]} 15. hxg3 {[%clk 0:02:47]}  Rc8 {[%clk 0:02:37]} 16. Qe2 {[%clk 0:02:46]}  cxd4 {[%clk 0:02:33]} 17. exd4 {[%clk 0:02:44]}  a5 {[%clk 0:02:29]} 18. Nc4 {[%clk 0:02:35]}  Bd5 {[%clk 0:02:16]} 19. Rad1 {[%clk 0:02:20]}  Nb6 {[%clk 0:01:45]} 20. b3 {[%clk 0:01:39]}  Bxc4 {[%clk 0:01:39]} 21. bxc4 {[%clk 0:01:35]}  Nxa4 {[%clk 0:01:39]} 22. Bxh7+ {[%clk 0:00:56]}  Kxh7 {[%clk 0:01:39]} 23. Qc2+ {[%clk 0:00:56]}  Kg8 {[%clk 0:01:39]} 24. Qxa4 {[%clk 0:00:56]}  Rxc4 {[%clk 0:01:39]} 25. Ne5 {[%clk 0:00:56]}  Rc3 {[%clk 0:01:07]} 26. Nc6 {[%clk 0:00:54]}  Qd7 {[%clk 0:01:03]} 27. Nxe7+ {[%clk 0:00:53]}  Qxe7 {[%clk 0:01:04]} 28. Qxa5 {[%clk 0:00:53]}  Rfc8 {[%clk 0:00:58]} 29. Rb1 {[%clk 0:00:40]}  R3c4 {[%clk 0:00:56]} 30. d5 {[%clk 0:00:32]}  exd5 {[%clk 0:00:54]} 31. Qxd5 {[%clk 0:00:32]}  Qc5 {[%clk 0:00:41]} 32. Qb7 {[%clk 0:00:27]}  Rc7 {[%clk 0:00:32]} 33. Qb8+ {[%clk 0:00:25]}  Kh7 {[%clk 0:00:32]} 34. Rfe1 {[%clk 0:00:23]}  Rc2 {[%clk 0:00:30]} 35. Re3 {[%clk 0:00:20]}  Re7 {[%clk 0:00:20]} 36. Qf4 {[%clk 0:00:18]}  Rxe3 {[%clk 0:00:18]} 37. Qxe3 {[%clk 0:00:18]}  Qxe3 {[%clk 0:00:17]} 38. fxe3 {[%clk 0:00:19]}  Re2 {[%clk 0:00:16]} 39. Rxb4 {[%clk 0:00:19]}  Rxe3 {[%clk 0:00:16]} 1/2-1/2


[Site "https://www.chess.com"]